bitfinex/quotes_SOLUSD_20241209
["timestamp","ask_amount","ask_price","bid_price","bid_amount"]
[1733721267258,1.552,232.75,232.69,0.32283094]
[1733721269653,1.552,232.75,232.7,20.0]
[1733721269939,1.552,232.75,232.71,0.32286245]
[1733721270839,1.552,232.75,232.69,0.32280057]
[1733721272252,1.5001,232.8,232.69,10.54299921]
[1733721272828,1.5001,232.8,232.71,0.12549]
[1733721273045,1.5001,232.8,232.71,10.66830172]
[1733721273443,1.5001,232.8,232.72,10.22019864]
[1733721273648,1.5001,232.8,232.73,0.32251058]
[1733721276355,1.5001,232.8,232.74,20.0]
[1733721276533,1.5001,232.8,232.75,0.32259851]
[1733721287156,1.5001,232.8,232.74,26.039]
[1733721287773,1.5001,232.8,232.72,0.32260567]
[1733721287936,1.5001,232.8,232.73,6.039]
[1733721290464,1.5001,232.8,232.74,0.32276701]
[1733721305178,1.5001,232.8,232.72,0.32262803]
[1733721305357,1.5001,232.8,232.71,20.0]
[1733721305558,7.5781,232.8,232.71,20.0]
[1733721306089,7.5781,232.8,232.68,20.0]
[1733721306297,0.80552543,232.79,232.69,0.32295856]
[1733721306657,0.80552543,232.79,232.65,0.32300533]
[1733721306854,0.80552543,232.79,232.66,0.37647]
[1733721307084,0.80552543,232.79,232.67,24.09990918]
[1733721307761,0.80552543,232.79,232.67,0.32302518]
[1733721307963,0.80552543,232.79,232.65,30.22019864]
[1733721308274,0.80552543,232.79,232.66,0.32305467]
[1733721309395,1.5522,232.78,232.66,0.32305467]
[1733721309577,20.80563723,232.77,232.66,0.32305467]
[1733721309904,20.80563723,232.77,232.63,0.32324903]
[1733721310768,20.80563723,232.77,232.64,0.3232568]
[1733721311011,20.80563723,232.77,232.65,20.0]
[1733721311502,7.7637,232.76,232.64,0.3232568]
[1733721311675,0.8056961,232.75,232.64,0.3232568]
[1733721311870,0.8056961,232.75,232.63,0.3232999]
[1733721312102,6.1659,232.72,232.58,0.3232999]
[1733721312275,0.80587921,232.71,232.58,0.3232999]
[1733721312477,0.80587921,232.71,232.55,0.25098]
[1733721312701,0.80587921,232.71,232.56,0.32374472]
[1733721313378,0.80587921,232.71,232.58,20.0]
[1733721313607,0.80587921,232.71,232.56,34.32082736]
[1733721313608,0.80587921,232.71,232.59,20.32365904]
[1733721314476,6.1659,232.72,232.61,34.24806264]
[1733721314694,6.1659,232.72,232.63,10.22019864]
[1733721314975,6.1659,232.72,232.64,0.32318281]
[1733721315173,1.5978,232.73,232.66,20.0]
[1733721315382,1.5978,232.73,232.67,0.32303437]
[1733721315799,6.0811,232.77,232.67,0.32303437]
[1733721316000,7.6066,232.77,232.67,0.32303437]
[1733721319672,7.6066,232.77,232.7,20.0]
[1733721319904,7.6066,232.77,232.71,0.32283334]
[1733721321411,7.6066,232.77,232.69,0.32295856]
[1733721322308,7.6066,232.77,232.68,20.0]
[1733721322481,7.6066,232.77,232.69,0.32298325]
[1733721327200,7.6066,232.77,232.66,0.32309385]
[1733721327410,0.80563069,232.76,232.62,0.32316909]
[1733721327607,20.0,232.74,232.62,0.32316909]
[1733721327778,0.80576283,232.73,232.62,0.32316909]
[1733721328402,0.80576283,232.73,232.6,0.32344343]
[1733721329215,0.80576283,232.73,232.62,20.0]
[1733721329414,0.80576283,232.73,232.63,0.32342324]
[1733721330998,7.6066,232.77,232.63,10.54362188]
[1733721331209,0.80564069,232.76,232.63,10.54362188]
[1733721332720,0.80564069,232.76,232.63,0.32342324]
[1733721334924,7.6066,232.77,232.66,20.0]
[1733721335216,7.6066,232.77,232.67,0.32306581]
[1733721336105,7.6066,232.77,232.67,20.32306581]
[1733721337006,7.6066,232.77,232.67,0.32306581]
[1733721337220,7.6066,232.77,232.68,0.32292299]
[1733721338326,7.6066,232.77,232.67,20.0]
[1733721338514,7.6066,232.77,232.68,0.32301147]
[1733721341799,7.6066,232.77,232.66,0.32295424]
[1733721343322,7.6066,232.77,232.7,20.0]
[1733721343625,1.5255,232.77,232.71,0.32275586]
[1733721343933,1.5175,232.82,232.73,20.0]
[1733721344229,1.5175,232.82,232.74,0.32256666]
[1733721348907,23.776884,232.81,232.74,0.32256666]
[1733721350525,23.776884,232.81,232.71,0.32259344]
[1733721351638,23.776884,232.81,232.72,20.0]
[1733721351839,23.776884,232.81,232.73,0.32263633]
[1733721356244,23.776884,232.81,232.74,0.32259219]
[1733721357154,23.776884,232.81,232.72,10.22019864]
[1733721357450,23.776884,232.81,232.73,0.32245184]
[1733721360521,23.776884,232.81,232.7,20.0]
[1733721360723,23.776884,232.81,232.71,0.32271587]
[1733721364157,1.5557,232.79,232.71,0.32271587]
[1733721364340,24.58240917,232.78,232.69,0.32268634]
[1733721364524,23.776884,232.75,232.69,0.32268634]
[1733721364851,23.776884,232.75,232.65,0.32305815]
[1733721365354,0.12549,232.74,232.65,0.32305815]
[1733721365647,23.776884,232.72,232.61,0.32328874]
[1733721366520,23.776884,232.72,232.58,0.32340637]
[1733721367027,23.776884,232.72,232.62,20.0]
[1733721367343,23.776884,232.72,232.63,0.32335079]
[1733721368132,23.776884,232.72,232.61,20.0]
[1733721368333,23.776884,232.72,232.62,0.32341137]
[1733721369233,23.776884,232.72,232.59,0.32346435]
[1733721369636,23.776884,232.72,232.6,20.0]
[1733721369837,23.776884,232.72,232.61,0.32346607]
[1733721370037,23.776884,232.7,232.61,0.32346607]
[1733721370352,30.376284,232.68,232.56,0.3235429]
[1733721371529,30.376284,232.68,232.58,20.0]
[1733721371838,30.376284,232.68,232.59,0.32364832]
[1733721374253,30.376284,232.68,232.56,0.32362326]
[1733721374434,23.776884,232.66,232.57,20.0]
[1733721374637,23.776884,232.66,232.58,0.3237484]
[1733721375636,23.776884,232.66,232.56,20.0]
[1733721375637,23.776884,232.66,232.57,0.32384804]
[1733721376032,0.12549,232.65,232.55,20.0]
[1733721376238,0.12549,232.65,232.56,0.32388788]
[1733721378155,0.25098,232.65,232.56,0.32388788]
[1733721378341,23.776884,232.64,232.52,0.32388839]
[1733721379332,23.776884,232.64,232.53,0.32399362]
[1733721379661,0.12549,232.65,232.54,20.0]
[1733721379847,23.776884,232.64,232.55,0.32394011]
[1733721380448,0.93152993,232.63,232.55,0.32394011]
[1733721380641,0.93152993,232.63,232.48,10.220198]
[1733721380642,23.776884,232.62,232.51,20.0]
[1733721380938,23.776884,232.62,232.53,20.0]
[1733721381153,0.12549,232.61,232.52,0.32408065]
[1733721381333,0.12549,232.61,232.52,20.32408065]
[1733721382063,23.776884,232.62,232.52,20.32408065]
[1733721382064,23.776884,232.62,232.52,0.32408065]
[1733721382261,23.776884,232.62,232.53,0.32405917]
[1733721383135,23.776884,232.62,232.5,10.22019864]
[1733721383136,23.776884,232.62,232.51,0.32406014]
[1733721384776,23.776884,232.62,232.52,0.32410196]
[1733721384944,1.6033,232.67,232.54,30.22019864]
[1733721385141,1.6033,232.67,232.56,10.22019864]
[1733721385340,1.6033,232.67,232.57,0.32370099]
[1733721386968,23.776884,232.66,232.57,0.32370099]
[1733721387756,23.776884,232.66,232.57,20.32370099]
[1733721387945,23.776884,232.66,232.57,0.32370099]
[1733721388158,23.776884,232.66,232.57,20.0]
[1733721388554,23.776884,232.66,232.58,0.32380119]
[1733721389878,23.776884,232.66,232.56,20.0]
[1733721390087,23.776884,232.66,232.57,0.32376842]
[1733721390275,0.25098,232.65,232.54,0.32378078]
[1733721390576,0.25098,232.65,232.46,5.0]
[1733721390577,23.902374,232.63,232.49,10.54415306]
[1733721391473,0.93157224,232.63,232.49,10.54415306]
[1733721391671,0.12549,232.63,232.52,20.0]
[1733721391847,23.776884,232.62,232.53,0.32407003]
[1733721393569,7.91419,232.61,232.53,0.32407003]
[1733721393796,23.776884,232.6,232.53,0.32407003]
[1733721394150,23.776884,232.6,232.52,0.32419259]
[1733721394358,23.776884,232.58,232.49,0.32419163]
[1733721394863,0.93163196,232.59,232.49,0.32419163]
[1733721394864,0.12549,232.59,232.49,0.32419163]
[1733721395070,23.776884,232.58,232.49,0.32419163]
[1733721395268,23.776884,232.58,232.42,18.95321253]
[1733721395269,23.902374,232.54,232.42,18.95321253]
[1733721395489,23.902374,232.54,232.43,0.32470305]
[1733721395990,22.81720987,232.54,232.43,0.32470305]
[1733721396166,22.81720987,232.54,232.43,10.54490169]
[1733721396558,1.5889,232.55,232.46,10.22019864]
[1733721396773,1.5889,232.55,232.47,0.32432897]
[1733721397772,1.5889,232.55,232.47,20.32432897]
[1733721399584,23.776884,232.54,232.47,0.32432897]
[1733721401305,23.776884,232.54,232.47,20.0]
[1733721401501,23.776884,232.54,232.48,0.32444014]
[1733721401798,23.776884,232.54,232.46,20.0]
[1733721402802,23.776884,232.54,232.46,20.32453702]
[1733721403003,23.776884,232.54,232.44,0.32453637]
[1733721403379,24.58330268,232.54,232.44,0.32453637]
[1733721403784,0.25098,232.53,232.4,0.32479741]
[1733721404103,1.5889,232.55,232.4,0.32479741]
[1733721404104,24.027864,232.51,232.4,0.32479741]
[1733721404310,23.776884,232.49,232.4,0.32479741]
[1733721404880,23.776884,232.49,232.38,0.32507084]
[1733721405379,23.776884,232.49,232.38,10.54526948]
[1733721406097,23.776884,232.49,232.41,20.0]
[1733721406304,23.776884,232.49,232.42,0.32487588]
[1733721408107,24.027864,232.54,232.42,0.32487588]
[1733721415617,1.5889,232.55,232.44,10.22019864]
[1733721415830,1.5889,232.55,232.45,0.32442442]
[1733721419629,1.5889,232.55,232.46,10.22019864]
[1733721419926,1.5889,232.55,232.47,0.32429268]
[1733721420435,0.80619248,232.69,232.47,0.32429268]
[1733721420436,25.464174,232.61,232.48,10.22019864]
[1733721420727,1.5618,232.61,232.49,10.5443334]
[1733721421023,1.5618,232.61,232.49,0.32413476]
[1733721421326,0.12549,232.6,232.49,0.32413476]
[1733721421493,0.12549,232.58,232.47,0.32424354]
[1733721421916,23.902374,232.58,232.48,20.0]
[1733721422118,0.12549,232.58,232.48,20.0]
[1733721422419,24.027864,232.58,232.49,0.32437027]
[1733721422637,0.12549,232.59,232.49,0.32437027]
[1733721422996,0.12549,232.59,232.5,20.0]
[1733721423223,0.12549,232.59,232.51,0.32421114]
[1733721425098,20.0,232.65,232.52,10.22019864]
[1733721425296,20.0,232.65,232.53,0.32389381]
[1733721425492,2.36519305,232.67,232.53,0.32389381]
[1733721426227,0.12549,232.66,232.53,0.32389381]
[1733721426529,24.027864,232.64,232.53,0.32389381]
[1733721426723,24.027864,232.64,232.53,20.32389381]
[1733721426937,24.027864,232.66,232.53,20.32389381]
[1733721427122,24.027864,232.64,232.53,20.32389381]
[1733721428027,0.12549,232.65,232.53,20.32389381]
[1733721428229,0.12549,232.65,232.53,0.32389381]
[1733721428422,0.12549,232.63,232.54,0.32392837]
[1733721429335,0.12549,232.63,232.55,0.32388388]
[1733721430104,23.776884,232.66,232.55,0.32388388]
[1733721430311,0.12549,232.65,232.55,0.32388388]
[1733721430600,0.25098,232.65,232.55,0.32388388]
[1733721434626,24.027864,232.63,232.55,0.32388388]
[1733721434831,24.027864,232.63,232.53,0.32405498]
[1733721436432,24.027864,232.63,232.51,0.32402541]
[1733721436942,24.027864,232.63,232.51,20.32402541]
[1733721437712,24.027864,232.63,232.52,20.0]
[1733721438238,24.027864,232.63,232.53,0.32412699]
[1733721439211,24.027864,232.63,232.52,0.32407886]
[1733721441315,24.027864,232.61,232.52,0.32407886]
[1733721449637,24.027864,232.61,232.51,19.15209186]
[1733721451647,24.027864,232.61,232.52,20.0]
[1733721453844,24.027864,232.61,232.51,20.0]
[1733721455680,24.027864,232.61,232.52,20.0]
[1733721455874,24.027864,232.61,232.51,20.0]
[1733721468384,24.027864,232.61,232.52,20.0]
[1733721468957,24.027864,232.61,232.51,20.0]
[1733721472179,24.027864,232.61,232.52,20.0]
[1733721474170,24.027864,232.61,232.51,20.0]
[1733721478395,25.611464,232.59,232.5,20.0]
[1733721478575,25.611464,232.59,232.48,20.0]
[1733721480365,25.611464,232.59,232.45,11.86339864]
[1733721480366,25.611464,232.59,232.47,20.0]
[1733721480565,25.611464,232.59,232.49,20.0]
[1733721483069,25.611464,232.59,232.47,30.22019864]
[1733721485698,25.611464,232.59,232.49,10.22019864]
[1733721486072,25.611464,232.59,232.48,30.22019864]
[1733721486476,25.611464,232.59,232.48,10.22019864]
[1733721487097,1.5836,232.59,232.5,10.22019864]
[1733721487408,1.5836,232.59,232.51,10.22019864]
[1733721488097,1.5836,232.59,232.47,20.0]
[1733721488098,1.5836,232.59,232.5,10.22019864]
[1733721489617,23.902374,232.63,232.53,10.22019864]
[1733721492452,23.902374,232.63,232.52,10.22019864]
[1733721492918,23.902374,232.63,232.51,10.22019864]
[1733721495107,23.902374,232.61,232.5,20.0]
[1733721495313,23.776884,232.59,232.5,20.0]
[1733721495518,0.80620293,232.6,232.53,10.22019864]
[1733721495694,1.5229,232.64,232.56,10.22019864]
[1733721496593,1.5229,232.64,232.57,10.22019864]
[1733721497220,8.2057,232.75,232.58,10.22019864]
[1733721497433,0.80580201,232.74,232.58,10.22019864]
[1733721497919,0.12549,232.73,232.58,10.22019864]
[1733721498123,8.2057,232.75,232.58,10.22019864]
[1733721498124,0.12549,232.71,232.58,10.22019864]
[1733721498532,24.027864,232.71,232.58,10.22019864]
[1733721498825,0.25098,232.71,232.58,10.22019864]
[1733721499126,23.776884,232.74,232.56,20.0]
[1733721499315,23.776884,232.71,232.58,10.22019864]
[1733721499520,0.12549,232.7,232.57,10.22019864]
[1733721499723,0.12549,232.7,232.6,20.0]
[1733721499921,1.5885,232.69,232.6,20.0]
[1733721500099,25.365384,232.69,232.56,10.22019864]
[1733721500600,25.365384,232.69,232.59,20.0]
[1733721502223,0.25098,232.68,232.59,20.0]
[1733721502399,0.25098,232.68,232.56,10.22019864]
[1733721503130,0.25098,232.68,232.57,10.22019864]
[1733721506015,25.365384,232.69,232.59,10.22019864]
[1733721506216,1.5885,232.69,232.59,10.22019864]
[1733721508037,1.5885,232.69,232.58,10.22019864]
[1733721508417,1.5885,232.69,232.59,10.22019864]
[1733721508823,1.5885,232.69,232.6,10.22019864]
[1733721509641,1.5885,232.69,232.59,10.22019864]
[1733721510033,1.5885,232.69,232.6,10.22019864]
[1733721511114,1.5885,232.69,232.57,20.0]
[1733721511346,1.5885,232.69,232.58,10.22019864]
[1733721511536,1.5885,232.69,232.57,20.0]
[1733721511724,1.5885,232.69,232.59,20.0]
[1733721512519,1.5885,232.69,232.57,10.22019864]
[1733721512725,1.5885,232.69,232.6,20.0]
[1733721513126,23.776884,232.68,232.6,20.0]
[1733721513742,23.776884,232.68,232.57,10.22019864]
[1733721514042,23.776884,232.68,232.56,10.22019864]
[1733721514210,23.776884,232.68,232.59,20.0]
[1733721515140,23.902374,232.66,232.53,20.0]
[1733721515309,23.902374,232.66,232.53,30.22019864]
[1733721515510,23.902374,232.66,232.53,10.22019864]
[1733721515925,23.902374,232.66,232.46,6.5933]
[1733721515926,1.6,232.62,232.51,10.22019864]
[1733721516130,23.776884,232.61,232.51,10.22019864]
[1733721516439,23.776884,232.61,232.5,10.22019864]
[1733721517017,23.776884,232.61,232.51,10.22019864]
[1733721519965,23.776884,232.61,232.5,10.22019864]
[1733721520248,23.776884,232.61,232.53,20.0]
[1733721522141,1.6,232.62,232.53,10.22019864]
[1733721522859,1.6,232.62,232.54,10.22019864]
[1733721523017,1.6,232.62,232.55,10.22019864]
[1733721523531,1.6,232.62,232.56,20.0]
[1733721524147,1.6,232.62,232.5,20.0]
[1733721524347,1.6,232.62,232.56,20.0]
[1733721524551,1.6,232.62,232.54,10.22019864]
[1733721530778,1.6,232.62,232.56,20.0]
[1733721530958,1.6,232.62,232.5,20.0]
[1733721531290,23.776884,232.61,232.5,10.22019864]
[1733721532989,23.776884,232.61,232.51,10.22019864]
[1733721533491,23.776884,232.61,232.5,10.22019864]
[1733721534586,23.776884,232.61,232.51,10.22019864]
[1733721536163,23.776884,232.61,232.5,10.22019864]
[1733721536464,23.776884,232.59,232.47,30.22019864]
[1733721537524,23.776884,232.59,232.43,80.7]
[1733721537525,23.776884,232.59,232.46,20.0]
[1733721537677,23.776884,232.59,232.5,20.0]
[1733721538076,23.776884,232.59,232.46,20.0]
[1733721538290,23.776884,232.59,232.5,20.0]
[1733721538470,1.6372,232.57,232.46,20.0]
[1733721538670,24.58316346,232.56,232.44,10.22019864]
[1733721538873,23.776884,232.56,232.45,10.22019864]
[1733721540070,23.776884,232.56,232.48,20.0]
[1733721541604,23.776884,232.56,232.46,10.22019864]
[1733721543601,1.6372,232.57,232.49,10.22019864]
[1733721543967,1.6372,232.57,232.43,0.25098]
[1733721543968,1.6372,232.57,232.48,10.22019864]
[1733721544879,1.6372,232.57,232.49,10.22019864]
[1733721547388,1.6372,232.57,232.43,0.25098]
[1733721547389,1.6372,232.57,232.44,20.0]
[1733721547591,1.6372,232.57,232.47,10.22019864]
[1733721549982,1.6372,232.57,232.48,10.22019864]
[1733721550997,1.6372,232.57,232.43,20.25098]
[1733721551190,1.6372,232.57,232.48,10.22019864]
[1733721552303,1.6372,232.57,232.49,10.22019864]
[1733721553202,1.6372,232.57,232.47,30.22019864]
[1733721553403,1.6372,232.57,232.48,10.22019864]
[1733721553581,1.6372,232.57,232.49,10.22019864]
[1733721555088,1.6372,232.57,232.52,10.22019864]
[1733721555289,1.6372,232.57,232.53,10.22019864]
[1733721555697,1.6372,232.57,232.47,20.0]
[1733721555698,1.5572,232.62,232.55,10.22019864]
[1733721555880,1.5572,232.62,232.56,10.22019864]
[1733721556080,1.5572,232.62,232.55,10.22019864]
[1733721560493,1.5572,232.62,232.54,10.22019864]
[1733721560692,1.5572,232.62,232.55,10.22019864]
[1733721562483,1.5572,232.62,232.51,20.0]
[1733721562678,1.5572,232.62,232.55,10.22019864]
[1733721563286,1.5572,232.62,232.56,10.22019864]
[1733721565430,1.5572,232.62,232.55,10.22019864]
[1733721571794,1.5572,232.62,232.5,6.3412]
[1733721571999,1.5572,232.62,232.53,20.0]
[1733721572216,1.5572,232.62,232.55,20.0]
[1733721572596,6.1335,232.6,232.46,13.23010239]
[1733721572801,23.776884,232.59,232.47,10.22019864]
[1733721573022,23.776884,232.59,232.46,10.22019864]
[1733721573806,24.58312948,232.59,232.46,10.22019864]
[1733721574000,24.58312948,232.59,232.49,20.0]
[1733721574922,1.5595,232.57,232.42,13.23010239]
[1733721575236,23.776884,232.56,232.45,10.22019864]
[1733721575731,0.12549,232.55,232.45,10.22019864]
[1733721576104,0.12549,232.55,232.48,20.0]
[1733721577307,1.5595,232.57,232.48,10.22019864]
[1733721577498,1.5595,232.57,232.49,10.22019864]
[1733721577700,1.5595,232.57,232.48,10.22019864]
[1733721578218,1.5595,232.57,232.5,20.0]
[1733721578922,1.5595,232.57,232.48,10.22019864]
[1733721582505,1.5595,232.57,232.5,20.0]
[1733721583024,1.5595,232.57,232.45,20.0]
[1733721583227,1.5595,232.57,232.48,10.22019864]
[1733721584204,1.5595,232.57,232.47,10.22019864]
[1733721584405,1.5595,232.57,232.5,20.0]
[1733721585299,1.5595,232.57,232.48,10.22019864]
[1733721587725,1.5595,232.57,232.46,20.0]
[1733721588048,1.5595,232.57,232.5,20.0]
[1733721589953,23.776884,232.56,232.46,30.22019864]
[1733721590750,23.776884,232.56,232.47,10.22019864]
[1733721592333,23.776884,232.56,232.46,30.22019864]
[1733721594132,23.776884,232.56,232.47,10.22019864]
[1733721598479,23.776884,232.56,232.45,20.0]
[1733721598681,23.776884,232.56,232.47,10.22019864]
[1733721601498,1.5595,232.57,232.45,20.0]
[1733721601670,1.5595,232.57,232.47,10.22019864]
[1733721602063,1.5595,232.57,232.49,10.22019864]
[1733721603965,1.5595,232.57,232.48,10.22019864]
[1733721604785,1.5595,232.57,232.46,20.0]
[1733721604962,1.5595,232.57,232.48,10.22019864]
[1733721610070,23.776884,232.56,232.45,20.0]
[1733721610269,23.776884,232.56,232.45,30.22019864]
[1733721611696,23.776884,232.56,232.46,10.22019864]
[1733721612069,23.776884,232.56,232.49,20.0]
[1733721612265,23.776884,232.56,232.49,30.22019864]
[1733721613724,1.5595,232.57,232.5,10.22019864]
[1733721614699,1.5595,232.57,232.49,10.22019864]
[1733721615803,1.5595,232.57,232.5,10.22019864]
[1733721616010,1.5595,232.57,232.51,10.22019864]
[1733721618917,1.5595,232.57,232.5,10.22019864]
[1733721623444,1.5595,232.57,232.51,10.22019864]
[1733721627043,1.5595,232.57,232.48,20.0]
[1733721627242,1.5595,232.57,232.5,10.22019864]
[1733721632699,1.5595,232.57,232.5,20.0]
[1733721632887,23.776884,232.56,232.47,10.22019864]
[1733721633193,6.5556,232.53,232.42,39.69030718]
[1733721633373,6.5556,232.53,232.41,13.23010239]
[1733721633560,6.5556,232.53,232.42,10.22019864]
[1733721634484,6.5556,232.53,232.43,10.22019864]
[1733721634485,1.6164,232.52,232.43,10.22019864]
[1733721634694,1.6164,232.52,232.44,10.22019864]
[1733721638802,1.6164,232.52,232.43,30.22019864]
[1733721640987,1.6164,232.52,232.43,20.0]
[1733721640988,23.776884,232.51,232.43,20.0]
[1733721641704,23.776884,232.51,232.43,10.22019864]
[1733721642076,1.6164,232.52,232.44,10.22019864]
[1733721644298,1.6164,232.52,232.42,20.0]
[1733721644299,1.6164,232.52,232.43,10.22019864]
[1733721647392,1.6164,232.52,232.42,20.0]
[1733721647593,1.6164,232.52,232.43,10.22019864]
[1733721651597,1.6164,232.52,232.45,10.22019864]
[1733721652394,1.6164,232.52,232.42,20.0]
[1733721652726,1.6164,232.52,232.44,10.22019864]
[1733721653029,1.6164,232.52,232.42,20.0]
[1733721653212,1.6164,232.52,232.44,10.22019864]
[1733721656321,2.42281494,232.52,232.42,30.22019864]
[1733721656525,2.42281494,232.52,232.42,20.0]
[1733721656716,2.42281494,232.52,232.43,20.0]
[1733721657512,1.6164,232.52,232.42,30.22019864]
[1733721657731,1.6164,232.52,232.43,10.22019864]
[1733721659854,23.902374,232.52,232.46,0.92035883]
[1733721660059,23.776884,232.52,232.46,0.92035883]
[1733721662795,25.390584,232.52,232.46,0.92035883]
[1733721663089,0.80572621,232.51,232.46,0.92035883]
[1733721663293,25.390584,232.52,232.46,0.92035883]
[1733721663467,25.390584,232.52,232.44,0.92035883]
[1733721665395,25.390584,232.52,232.47,0.92035883]
[1733721666184,25.390584,232.52,232.45,0.92035883]
[1733721668664,0.80572621,232.51,232.45,0.92035883]
[1733721669490,25.390584,232.52,232.45,0.92035883]
[1733721673805,0.80572621,232.51,232.45,0.92035883]
[1733721674677,23.902374,232.5,232.43,0.92035883]
[1733721674875,23.902374,232.48,232.39,0.92035883]
[1733721675100,23.776884,232.46,232.37,0.92035883]
[1733721675409,0.80572621,232.45,232.37,0.92035883]
[1733721675703,23.776884,232.44,232.35,0.92035883]
[1733721675883,23.776884,232.42,232.35,0.92035883]
[1733721676725,23.776884,232.4,232.33,0.92035883]
[1733721676894,0.80572621,232.39,232.33,0.92035883]
[1733721677087,0.93121621,232.41,232.32,0.92035883]
[1733721677287,0.93121621,232.41,232.3,0.4986871]
[1733721677517,0.12549,232.39,232.31,0.92035883]
[1733721677701,0.93121621,232.39,232.31,0.92035883]
[1733721678810,0.93121621,232.39,232.3,1.14425065]
[1733721679015,0.93121621,232.39,232.31,0.92035883]
[1733721681297,23.776884,232.38,232.31,0.92035883]
[1733721681607,0.80572621,232.37,232.31,0.92035883]
[1733721683435,0.80572621,232.37,232.3,0.4986871]
[1733721683631,0.12549,232.39,232.31,0.92035883]
[1733721684219,24.027864,232.41,232.31,0.92035883]
[1733721684419,23.902374,232.39,232.31,0.92035883]
[1733721684721,0.80572621,232.38,232.31,0.92035883]
[1733721688007,23.902374,232.37,232.31,0.92035883]
[1733721688202,0.80572621,232.36,232.31,0.92035883]
[1733721688502,0.80572621,232.38,232.31,0.92035883]
[1733721690426,0.80572621,232.38,232.3,1.41904593]
[1733721690603,23.902374,232.37,232.3,1.41904593]
[1733721690802,0.80572621,232.36,232.3,1.41904593]
[1733721691325,0.80572621,232.36,232.3,0.4986871]
[1733721691895,23.776884,232.35,232.3,0.4986871]
[1733721692095,0.80572621,232.34,232.3,1.41904593]
[1733721692319,0.12549,232.37,232.3,1.41904593]
[1733721693197,24.027864,232.38,232.3,1.41904593]
[1733721693426,23.902374,232.36,232.3,1.41904593]
[1733721693603,23.776884,232.36,232.3,1.41904593]
[1733721694025,0.80572621,232.35,232.3,1.41904593]
[1733721697428,0.80572621,232.35,232.3,0.4986871]
[1733721699100,0.12549,232.34,232.3,0.4986871]
[1733721699299,25.523574,232.34,232.3,0.4986871]
[1733721699539,23.902374,232.32,232.3,0.4986871]
[1733721699838,0.93121621,232.32,232.3,0.4986871]
[1733721702431,23.902374,232.31,232.3,0.4986871]
[1733721708422,24.027864,232.31,232.3,0.4986871]
[1733721710336,23.902374,232.31,232.3,0.4986871]
[1733721710545,0.80572621,232.34,232.3,0.4986871]
[1733721710748,0.80572621,232.38,232.3,0.4986871]
[1733721711627,0.12549,232.37,232.3,0.4986871]
[1733721711851,20.80572621,232.38,232.3,0.4986871]
[1733721712334,24.027864,232.37,232.3,0.4986871]
[1733721712534,23.902374,232.35,232.3,0.4986871]
[1733721712736,0.80572621,232.34,232.3,0.4986871]
[1733721712958,0.12549,232.34,232.3,0.4986871]
[1733721713234,0.93121621,232.34,232.3,0.4986871]
[1733721715158,23.776884,232.36,232.3,0.4986871]
[1733721715367,1.6333,232.45,232.3,0.4986871]
[1733721715368,0.80572621,232.41,232.3,1.41904593]
[1733721715545,1.6333,232.45,232.3,2.06464703]
[1733721715546,0.80572621,232.44,232.3,2.06464703]
[1733721715934,0.12549,232.43,232.3,2.06464703]
[1733721716559,20.80572621,232.44,232.3,2.06464703]
[1733721717058,0.25098,232.42,232.3,2.06464703]
[1733721717267,23.776884,232.41,232.3,2.06464703]
[1733721717431,23.902374,232.39,232.3,2.06464703]
[1733721717626,0.80572621,232.38,232.3,2.06464703]
[1733721717842,0.12549,232.4,232.3,2.06464703]
[1733721718040,0.93121621,232.4,232.3,2.06464703]
[1733721718441,23.776884,232.39,232.3,2.06464703]
[1733721718658,0.80572621,232.38,232.3,2.06464703]
[1733721718852,0.12549,232.4,232.3,2.06464703]
[1733721719058,0.93121621,232.4,232.3,2.06464703]
[1733721719445,23.776884,232.39,232.3,2.06464703]
[1733721719764,0.93121621,232.4,232.3,2.06464703]
[1733721719765,0.80572621,232.38,232.3,2.06464703]
[1733721719949,23.776884,232.39,232.3,2.06464703]
[1733721720147,0.80572621,232.38,232.3,1.41904593]
[1733721720540,23.902374,232.37,232.3,1.41904593]